bitfinex-derivatives/quotes_SOLF0:USTF0_20240816
["timestamp","ask_amount","ask_price","bid_price","bid_amount"]
[1723806280716,0.04644835,143.17,143.16,14.2017]
[1723806282316,0.04644835,143.17,143.16,3.4917]
[1723806286417,0.04644835,143.17,143.15,3.4918]
[1723806286622,0.04644835,143.17,143.14,0.04694558]
[1723806287017,0.04644835,143.17,143.15,3.492]
[1723806287611,0.04644835,143.17,143.16,3.4917]
[1723806292429,3.53804835,143.17,143.14,3.53904558]
[1723806292676,0.04644835,143.17,143.14,0.04694558]
[1723806293434,3.4918,143.16,143.14,0.04694558]
[1723806295235,3.53804835,143.17,143.14,0.04694558]
[1723806296438,3.53804835,143.17,143.14,3.53914558]
[1723806297347,0.04644835,143.17,143.14,3.53914558]
[1723806297642,0.04644835,143.17,143.14,0.04694558]
[1723806297838,0.04644835,143.17,143.14,10.75694558]
[1723806298034,0.04644835,143.17,143.16,10.71]
[1723806298946,0.04644835,143.17,143.16,14.2017]
[1723806299133,7.7106,143.21,143.16,10.71]
[1723806299134,4.22,143.21,143.16,10.71]
[1723806299339,10.71,143.24,143.18,10.71]
[1723806299538,3.4904,143.22,143.19,3.4909]
[1723806300547,3.53736009,143.22,143.19,3.54136476]
[1723806302042,0.04696009,143.22,143.21,10.71]
[1723806302439,0.04696009,143.22,143.21,14.2005]
[1723806302639,0.04696009,143.22,143.21,3.4905]
[1723806303440,0.04696009,143.22,143.19,0.05046476]
[1723806303648,3.53726009,143.22,143.19,0.05046476]
[1723806304046,3.53726009,143.22,143.19,3.54146476]
[1723806304549,3.4907,143.2,143.19,0.05046476]
[1723806304942,0.04696009,143.22,143.19,0.05046476]
[1723806305141,3.4906,143.21,143.19,0.05046476]
[1723806305472,0.04696009,143.22,143.19,0.05046476]
[1723806305645,3.4907,143.2,143.19,0.05046476]
[1723806310253,14.2007,143.2,143.19,0.05046476]
[1723806310944,3.4907,143.2,143.19,0.05046476]
[1723806316152,3.4919,143.16,143.12,1.2607]
[1723806316351,10.71,143.17,143.12,1.2607]
[1723806316557,10.71,143.17,143.13,3.4923]
[1723806316960,3.4919,143.16,143.13,3.4923]
[1723806317163,10.71,143.17,143.11,14.95]
[1723806317349,10.75540375,143.16,143.13,0.05106284]
[1723806317555,3.4922,143.14,143.13,0.05106284]
[1723806318353,14.2022,143.14,143.13,0.05106284]
[1723806320149,18.4422,143.14,143.13,0.05106284]
[1723806321965,3.4932,143.11,143.07,15.5294]
[1723806322262,10.71,143.12,143.07,15.5294]
[1723806322562,3.4932,143.1,143.07,15.5294]
[1723806323062,0.04936097,143.1,143.08,3.4937]
[1723806324868,0.04936097,143.1,143.09,3.4934]
[1723806325271,0.04936097,143.1,143.08,3.4936]
[1723806325956,0.04936097,143.1,143.09,3.4934]
[1723806327262,3.4931,143.11,143.09,3.4934]
[1723806327263,10.71,143.22,143.13,10.71]
[1723806327465,10.71,143.22,143.14,10.71]
[1723806327763,3.4909,143.2,143.15,3.4917]
[1723806327981,3.4909,143.2,143.14,10.71]
[1723806328164,7.4466,143.25,143.18,10.71]
[1723806328371,18.1566,143.25,143.18,10.71]
[1723806328575,14.6669,143.25,143.18,10.71]
[1723806328870,0.04948182,143.23,143.2,0.04857727]
[1723806329469,0.04948182,143.23,143.22,3.4903]
[1723806331161,3.4887,143.29,143.25,3.4894]
[1723806331570,3.4888,143.28,143.25,3.4894]
[1723806332163,4.24,143.31,143.25,26.79]
[1723806332368,0.04745278,143.28,143.27,26.79]
[1723806332564,0.04745278,143.28,143.25,0.04894074]
[1723806332565,26.79,143.35,143.25,30.30601801]
[1723806332867,26.79,143.35,143.26,4.36]
[1723806333064,26.79,143.35,143.27,4.36]
[1723806333259,3.4875,143.34,143.3,3.4881]
[1723806333766,0.05084561,143.33,143.31,0.050541]
[1723806334168,0.05084561,143.33,143.31,3.538441]
[1723806336073,0.05084561,143.33,143.32,3.4878]
[1723806354174,0.05084561,143.33,143.32,1.4511]
[1723806354393,0.05084561,143.33,143.31,0.050541]
[1723806354681,26.84084561,143.33,143.25,4.36]
[1723806354978,3.4882,143.31,143.27,3.4889]
[1723806355381,3.4883,143.3,143.27,3.4889]
[1723806355976,0.05185853,143.3,143.27,3.5357203]
[1723806356383,3.54025853,143.3,143.27,3.5357203]
[1723806356675,0.05185853,143.3,143.27,0.0468203]
[1723806357674,3.4888,143.28,143.27,0.0468203]
[1723806357874,0.05185853,143.3,143.21,4.36]
[1723806358072,4.36,143.29,143.2,26.79]
[1723806358274,31.15,143.29,143.2,26.79]
[1723806358471,3.4895,143.25,143.2,26.79]
[1723806358696,3.4895,143.25,143.19,4.36]
[1723806358877,3.4895,143.25,143.21,3.4904]
[1723806359086,0.04545868,143.23,143.21,3.54390275]
[1723806359383,0.04545868,143.23,143.22,3.4903]
[1723806361188,0.04545868,143.23,143.22,30.2803]
[1723806362781,1.249,143.31,143.22,26.79]
[1723806362976,5.589,143.31,143.22,26.79]
[1723806363383,3.4886,143.29,143.25,3.4893]
[1723806364081,3.53544873,143.28,143.26,0.04866377]
[1723806364484,0.04664873,143.28,143.26,3.53786377]
[1723806364682,0.04664873,143.28,143.26,0.04866377]
[1723806365292,0.04664873,143.28,143.27,3.489]
[1723806366283,6.9886,143.34,143.27,3.489]
[1723806366284,1.3194,143.34,143.27,3.489]
[1723806366488,1.2753,143.37,143.29,26.79]
[1723806366684,3.4869,143.36,143.29,26.79]
[1723806367085,3.4869,143.36,143.32,3.4876]
[1723806367487,0.05036106,143.35,143.33,0.05367046]
[1723806369890,0.05036106,143.35,143.33,3.54117046]
[1723806370688,0.05036106,143.35,143.34,3.4873]
[1723806378190,0.05036106,143.35,143.33,3.54107046]
[1723806384083,0.05036106,143.35,143.34,3.4873]
[1723806385695,0.05036106,143.35,143.33,30.33117046]
[1723806388594,0.05036106,143.35,143.33,3.54117046]
[1723806388996,0.05036106,143.35,143.34,3.4873]
[1723806390101,0.05036106,143.35,143.34,14.1973]
[1723806391899,0.05036106,143.35,143.34,3.4873]
[1723806398003,3.486,143.4,143.34,3.4873]
[1723806398206,5.6871,143.41,143.36,26.79]
[1723806398405,1.3471,143.41,143.36,26.79]
[1723806398700,3.4858,143.41,143.36,26.79]
[1723806398907,3.4858,143.41,143.38,3.4862]
[1723806399301,3.5322675,143.41,143.38,3.53146855]
[1723806403007,3.4859,143.4,143.38,3.53146855]
[1723806409310,3.4859,143.4,143.38,0.04526855]
[1723806409915,3.4861,143.39,143.38,0.04526855]
[1723806411014,3.486,143.4,143.38,0.04526855]
[1723806420523,3.4861,143.39,143.38,0.04526855]
[1723806421823,10.71,143.4,143.33,14.1975]
[1723806422025,1.2573,143.39,143.33,14.1975]
[1723806422520,11.9673,143.39,143.33,10.71]
[1723806422725,13.205,143.39,143.33,10.71]
[1723806422929,0.04866775,143.37,143.35,0.04503503]
[1723806423331,3.487,143.36,143.35,0.04503503]
[1723806423818,10.75866775,143.37,143.31,10.71]
[1723806424022,3.4874,143.34,143.31,14.1979]
[1723806424728,3.53475128,143.34,143.31,14.24688866]
[1723806425533,3.53475128,143.34,143.31,0.04898866]
[1723806425534,0.04735128,143.34,143.31,0.04898866]
[1723806426526,3.4878,143.33,143.31,0.04898866]
[1723806426828,0.04735128,143.34,143.31,0.04898866]
[1723806427229,3.4876,143.33,143.31,0.04898866]
[1723806427531,0.04735128,143.34,143.31,0.04898866]
[1723806427919,3.4878,143.32,143.31,0.04898866]
[1723806429629,3.4884,143.3,143.27,3.4889]
[1723806429824,3.4884,143.3,143.27,14.1989]
[1723806430731,3.53857183,143.3,143.27,14.2520073]
[1723806431523,0.05017183,143.3,143.27,10.7631073]
[1723806431729,3.4886,143.29,143.27,10.7631073]
[1723806432529,0.05017183,143.3,143.27,10.7631073]
[1723806432734,3.53857183,143.3,143.27,14.2521073]
[1723806433031,0.05017183,143.3,143.29,10.71]
[1723806434828,1.2871,143.35,143.29,14.1985]
[1723806435029,4.24,143.34,143.3,10.71]
[1723806435423,3.4877,143.33,143.3,14.1983]
[1723806435832,3.4877,143.33,143.3,14.25067763]
[1723806436136,3.53930518,143.33,143.3,14.25067763]
[1723806438261,3.4878,143.32,143.3,0.05237763]
[1723806440843,3.4881,143.31,143.3,0.05237763]
[1723806441844,3.4891,143.27,143.22,4.24]
[1723806442045,3.4891,143.27,143.23,10.71]
[1723806442250,3.4891,143.27,143.23,14.1999]
[1723806442538,1.2495,143.3,143.23,14.1999]
[1723806442539,3.4893,143.26,143.23,3.4899]
[1723806442930,4.24,143.28,143.22,10.71]
[1723806443136,3.54105801,143.26,143.23,0.04659394]
[1723806443645,0.05165801,143.26,143.23,0.04659394]
[1723806443837,3.4897,143.25,143.23,0.04659394]
[1723806444031,0.05165801,143.26,143.23,0.04659394]
[1723806444843,3.4898,143.25,143.23,0.04659394]
[1723806445344,0.05165801,143.26,143.23,0.04659394]
[1723806445741,0.05165801,143.26,143.23,3.53649394]
[1723806446835,3.54105801,143.26,143.23,3.53649394]
[1723806447042,0.05165801,143.26,143.23,0.04659394]
[1723806447732,3.54105801,143.26,143.23,3.53649394]
[1723806447931,0.05165801,143.26,143.23,0.04659394]
[1723806448445,3.4898,143.24,143.23,0.04659394]
[1723806451247,0.05165801,143.26,143.23,0.04659394]
[1723806452246,3.4895,143.25,143.23,0.04659394]
[1723806452545,0.05165801,143.26,143.23,0.04659394]
[1723806453046,3.4898,143.24,143.23,0.04659394]
[1723806454449,14.1998,143.24,143.23,0.04659394]
[1723806455236,3.4898,143.24,143.23,0.04659394]
[1723806455442,1.39855801,143.26,143.23,0.04659394]
[1723806455744,0.05165801,143.26,143.23,0.04659394]
[1723806455940,3.4897,143.25,143.23,0.04659394]
[1723806456340,0.05165801,143.26,143.23,0.04659394]
[1723806457750,3.4898,143.24,143.23,0.04659394]
[1723806459346,0.05165801,143.26,143.23,0.04659394]
[1723806459553,0.05165801,143.26,143.23,10.75659394]
[1723806459944,0.05165801,143.26,143.23,14.24639394]
[1723806460750,0.05165801,143.26,143.23,10.75659394]
[1723806461455,0.05165801,143.26,143.24,3.4896]
[1723806461650,0.05165801,143.26,143.23,10.75659394]
[1723806462745,0.05165801,143.26,143.25,10.71]
[1723806463949,0.05165801,143.26,143.25,14.1995]
[1723806464642,0.05165801,143.26,143.25,10.71]
[1723806465853,0.05165801,143.26,143.25,14.1995]
[1723806469458,3.4887,143.29,143.26,3.4892]
[1723806469778,3.4887,143.29,143.27,10.71]
[1723806469953,13.1945,143.34,143.24,6.1355771]
[1723806469954,2.4845,143.34,143.28,14.1987]
[1723806470153,6.7445,143.34,143.28,10.71]
[1723806470349,6.7445,143.34,143.3,10.71]
[1723806470350,3.4876,143.34,143.3,10.71]
[1723806470552,4.26,143.36,143.3,10.71]
[1723806470752,0.05202278,143.33,143.31,0.04854346]
[1723806471347,3.53972278,143.33,143.31,0.04854346]
[1723806476659,3.4878,143.32,143.31,0.04854346]
[1723806480255,14.1978,143.32,143.31,0.04854346]
[1723806482364,3.4878,143.32,143.31,0.04854346]
[1723806483760,3.4891,143.27,143.25,10.71]
[1723806484060,10.71,143.31,143.25,10.71]
[1723806484262,3.489,143.28,143.25,14.1995]
[1723806484460,4.22,143.32,143.27,10.71]
[1723806484966,3.4887,143.29,143.27,10.71]
[1723806485265,3.4887,143.29,143.28,0.05087443]
[1723806487963,10.71,143.3,143.21,4.22]
[1723806488169,10.71,143.28,143.22,10.71]
[1723806488665,14.93,143.28,143.22,10.71]
[1723806489061,3.4899,143.24,143.22,10.71]
[1723806489258,0.05065346,143.26,143.22,10.71]
[1723806489566,3.4899,143.24,143.22,10.71]
[1723806490971,0.05065346,143.26,143.23,10.71]
[1723806491174,13.2887,143.33,143.25,14.1995]
[1723806491476,0.04562684,143.26,143.25,14.1995]
[1723806491873,3.489,143.28,143.25,14.1995]
[1723806492073,0.04605687,143.27,143.25,14.1995]
[1723806492275,0.04605687,143.27,143.26,3.4893]
[1723806494973,0.04605687,143.27,143.25,14.1995]
[1723806495379,0.04605687,143.27,143.25,10.71]
[1723806496177,0.04605687,143.27,143.25,14.1994]
[1723806496967,3.53515687,143.27,143.25,10.71]
[1723806497671,3.53515687,143.27,143.25,14.1995]
[1723806498676,3.53515687,143.27,143.25,10.71]
[1723806504080,3.53515687,143.27,143.25,14.1995]
[1723806504280,3.53515687,143.27,143.25,10.71]
[1723806505383,3.53515687,143.27,143.25,14.1995]
[1723806514184,0.04605687,143.27,143.26,3.4893]
[1723806517082,3.4882,143.31,143.28,3.4887]
[1723806517294,2.5787,143.33,143.29,10.71]
[1723806517688,3.4885,143.3,143.27,14.1989]
[1723806518091,3.53877561,143.3,143.27,14.24967163]
[1723806520492,3.4888,143.28,143.27,0.05077163]
[1723806523900,14.1988,143.28,143.27,0.05077163]
[1723806524700,3.4888,143.28,143.27,0.05077163]
[1723806525401,10.71,143.28,143.21,10.71]
[1723806525596,10.71,143.26,143.19,11.9624]
[1723806525805,3.4902,143.23,143.19,15.4532]
[1723806526505,0.04705967,143.22,143.2,3.4907]
[1723806528404,0.04705967,143.22,143.21,10.71]
[1723806530499,0.04705967,143.22,143.21,14.2005]
[1723806531109,0.04705967,143.22,143.21,10.71]
[1723806534711,0.04705967,143.22,143.21,14.2005]
[1723806541215,0.04705967,143.22,143.2,3.4906]
[1723806541408,0.04705967,143.22,143.21,10.71]
[1723806541820,0.04705967,143.22,143.21,14.2005]
[1723806543118,5.552,143.29,143.21,10.71]
[1723806543317,5.552,143.29,143.19,1.2524]
[1723806543318,5.552,143.29,143.25,10.71]
[1723806543616,3.4893,143.26,143.25,10.71]
[1723806543810,4.2,143.29,143.25,10.71]
[1723806544014,4.2,143.29,143.28,10.71]
[1723806544212,5.4833,143.32,143.28,10.71]
[1723806544716,0.0537307,143.31,143.28,10.71]
[1723806545114,3.4884,143.3,143.28,10.71]
[1723806546720,3.4885,143.29,143.28,10.71]
[1723806546922,0.0537307,143.31,143.26,0.05122551]
[1723806547125,10.7637307,143.31,143.26,0.05122551]
[1723806547321,3.489,143.27,143.26,0.05122551]
[1723806548317,7.689,143.27,143.26,0.05122551]
[1723806549629,3.4902,143.23,143.2,10.71]
[1723806550126,3.4902,143.23,143.2,14.2006]
[1723806550928,3.54076056,143.23,143.2,10.71]
[1723806551120,3.4903,143.22,143.2,10.71]
[1723806551723,3.4905,143.21,143.2,10.71]
[1723806552728,3.4904,143.22,143.2,10.71]
[1723806553631,0.05056056,143.23,143.18,10.71]
[1723806554345,0.05056056,143.23,143.16,4.87000108]
[1723806554625,3.4903,143.22,143.19,10.71]
[1723806554930,0.05056056,143.23,143.19,10.71]
[1723806555318,3.4903,143.22,143.19,10.71]
[1723806555726,3.4905,143.21,143.19,10.71]
[1723806557837,3.4909,143.2,143.18,10.71]
[1723806558020,10.71,143.22,143.08,41.61309061]
[1723806558227,4.2,143.21,143.14,10.71]
[1723806558422,3.4914,143.18,143.14,10.71]
[1723806558627,11.7895225,143.27,143.17,10.71]
[1723806558628,0.04824311,143.19,143.17,10.71]
[1723806558927,0.04824311,143.19,143.12,3.54981119]
[1723806558928,3.4901,143.23,143.18,10.71]
[1723806559124,3.4901,143.23,143.21,10.71]
[1723806559934,3.53982564,143.23,143.21,10.71]
[1723806560236,3.4903,143.22,143.2,10.71]
[1723806561930,3.4905,143.21,143.2,10.71]
[1723806562734,3.4908,143.2,143.17,14.2014]
[1723806563037,0.04910537,143.2,143.17,10.71]
[1723806563332,0.04910537,143.2,143.17,14.2013]
[1723806564035,3.53990537,143.2,143.17,14.2013]
[1723806565435,3.53990537,143.2,143.17,10.71]
[1723806565845,3.53990537,143.2,143.16,10.71]
[1723806566047,3.53990537,143.2,143.16,14.2015]
[1723806566334,3.491,143.19,143.16,14.2015]
[1723806566736,3.491,143.19,143.16,10.71]
[1723806567341,3.4912,143.18,143.16,10.71]
[1723806568341,3.4911,143.19,143.16,10.71]
[1723806568649,0.04910537,143.2,143.16,10.71]
[1723806568938,3.54000537,143.2,143.16,10.71]
[1723806569143,3.54000537,143.2,143.17,3.4913]
[1723806570042,3.491,143.19,143.16,14.2016]
[1723806570341,0.04910537,143.2,143.16,10.71]
[1723806571143,0.04910537,143.2,143.14,14.14065889]
[1723806571538,3.4915,143.17,143.14,17.63275889]
[1723806571739,0.0495419,143.17,143.14,14.14065889]
[1723806572243,0.0495419,143.17,143.15,3.4919]
[1723806573540,3.5410419,143.17,143.14,17.63275889]
[1723806573746,3.5410419,143.17,143.14,14.2021]
[1723806573945,0.0495419,143.17,143.14,10.71]
[1723806574547,0.0495419,143.17,143.15,3.492]
[1723806579645,0.0495419,143.17,143.16,10.71]
[1723806580151,0.0495419,143.17,143.16,14.2017]
[1723806584654,0.0495419,143.17,143.13,3.54961472]
[1723806585055,0.0495419,143.17,143.13,14.25961472]
[1723806585643,0.0495419,143.17,143.14,10.71]
[1723806586354,0.0495419,143.17,143.15,3.4918]
[1723806590453,0.0495419,143.17,143.14,10.71]
[1723806591052,0.0495419,143.17,143.15,3.4918]
[1723806591554,0.0495419,143.17,143.16,3.4917]
[1723806591752,0.0495419,143.17,143.13,3.54961472]
[1723806591956,0.0495419,143.17,143.14,10.71]
[1723806592652,3.5411419,143.17,143.14,10.71]
[1723806592953,0.0495419,143.17,143.16,10.71]
[1723806593159,0.0495419,143.17,143.16,14.2017]
[1723806593662,0.0495419,143.17,143.16,10.71]
[1723806594160,0.0495419,143.17,143.15,3.4918]
[1723806595459,3.5410419,143.17,143.14,14.2021]
[1723806598359,0.0495419,143.17,143.14,14.2021]
[1723806598867,3.5411419,143.17,143.14,14.2021]
[1723806599055,0.0495419,143.17,143.07,1.3024]
[1723806599255,14.91,143.18,143.1,10.71]
[1723806599463,0.04721806,143.13,143.1,10.71]
[1723806599771,0.04721806,143.13,143.11,3.44698407]
[1723806600070,0.04721806,143.13,143.12,10.71]
[1723806600273,0.04721806,143.13,143.12,14.2027]
[1723806604573,0.04721806,143.13,143.12,3.4927]
[1723806605381,0.04721806,143.13,143.11,17.75395714]
[1723806605576,0.04721806,143.13,143.11,7.04395714]
[1723806605878,0.04721806,143.13,143.11,3.55105714]
[1723806606077,0.04721806,143.13,143.09,10.71]
[1723806606480,0.04721806,143.13,143.11,3.4928]
[1723806606679,0.04721806,143.13,143.11,10.71]
[1723806607073,0.04721806,143.13,143.12,3.4927]
[1723806607374,0.04721806,143.13,143.11,10.71]
[1723806607676,0.04721806,143.13,143.11,3.4929]
[1723806611485,3.53981806,143.13,143.1,10.71]
[1723806611678,0.04721806,143.13,143.1,10.71]
[1723806612075,0.04721806,143.13,143.11,3.4929]
[1723806612790,3.53981806,143.13,143.09,3.53034559]
[1723806613080,0.04721806,143.13,143.09,14.24034559]
[1723806613274,4.24721806,143.13,143.1,3.493]
[1723806614187,4.24721806,143.13,143.09,3.4933]
[1723806614378,3.4928,143.12,143.09,3.4933]
[1723806614991,3.493,143.11,143.08,14.16318763]
[1723806615884,3.4933,143.1,143.08,10.71]
[1723806616088,4.24721806,143.13,143.08,10.71]
[1723806616281,4.24721806,143.13,143.02,8.0322]
[1723806616478,3.5437192,143.09,143.06,14.2039]
[1723806616684,3.5437192,143.09,143.06,10.71]
[1723806616910,0.0503192,143.09,143.07,3.4939]
[1723806618877,0.0503192,143.09,143.02,8.0322]
[1723806619184,10.7603192,143.09,143.02,11.9819]
[1723806619482,3.4943,143.06,143.02,11.9819]
[1723806619678,7.6943,143.06,143.02,11.9819]
[1723806619878,0.05268379,143.05,143.02,11.9819]
[1723806620083,0.05268379,143.05,143.03,3.4949]
[1723806620285,0.05268379,143.05,143.02,11.9819]
[1723806620482,0.05268379,143.05,143.02,14.205]
[1723806620483,3.54708379,143.05,143.02,14.205]
[1723806620683,3.54708379,143.05,143.02,3.495]
[1723806621408,3.4948,143.04,142.98,1.2527]
[1723806621685,0.05268379,143.05,142.98,1.2527]
[1723806621884,0.05268379,143.05,143.01,10.71]
[1723806622090,0.05268379,143.05,143.02,3.4951]
[1723806622091,3.54718379,143.05,143.02,3.4951]
[1723806622783,4.2,143.04,143.02,14.2051]
[1723806622988,3.54718379,143.05,143.02,14.2051]
[1723806623187,4.2,143.04,143.02,14.2051]
[1723806623586,4.2,143.04,143.02,3.4951]
[1723806623781,4.2,143.04,143.01,3.4953]
[1723806623981,3.495,143.03,142.97,2.5539]
[1723806624188,7.695,143.03,142.99,10.71]
[1723806624393,0.05083874,143.01,142.99,14.2057]
[1723806624695,0.05083874,143.01,142.99,3.4957]
[1723806625187,10.76083874,143.01,142.95,3.40875124]
[1723806625392,3.43146693,143.05,142.88,6.9968]
[1723806625393,3.43146693,143.05,142.98,10.71]
[1723806625594,0.05022337,142.99,142.98,10.71]
[1723806625795,4.2,143.0,142.98,10.71]
[1723806625985,0.05138737,143.0,142.98,10.71]
[1723806626389,4.25138737,143.0,142.98,10.71]
[1723806626691,0.05138737,143.0,142.98,10.71]
[1723806626887,4.25138737,143.0,142.98,10.71]
[1723806627094,7.74708737,143.0,142.98,10.71]
[1723806627294,7.74708737,143.0,142.97,3.4963]
[1723806628096,0.05138737,143.0,142.98,3.4961]
[1723806628289,4.25138737,143.0,142.98,3.4961]
[1723806628486,0.05138737,143.0,142.99,10.71]
[1723806628688,0.05138737,143.0,142.99,14.2059]
[1723806629388,0.05138737,143.0,142.96,1.3533]
[1723806629389,0.05138737,143.0,142.98,10.71]
[1723806630689,0.05138737,143.0,142.99,14.2059]
[1723806630895,1.3268,143.08,142.99,10.71]
[1723806631092,4.2,143.06,143.02,10.71]
[1723806631291,3.4946,143.05,143.01,3.4952]
[1723806631687,3.4946,143.05,143.0,10.71]
[1723806631891,0.05228196,143.04,143.01,3.54515036]
[1723806632596,3.54698196,143.04,143.01,3.54515036]
[1723806633929,0.05228196,143.04,143.01,0.04995036]
[1723806634396,3.54708196,143.04,143.01,3.54535036]
[1723806635191,3.54708196,143.04,143.01,0.04995036]
[1723806635394,3.495,143.03,143.01,0.04995036]
[1723806635594,0.05228196,143.04,143.01,0.04995036]
[1723806635797,10.71,143.03,143.01,0.04995036]
[1723806636095,3.4951,143.02,143.01,0.04995036]
[1723806636494,7.7151,143.02,143.01,0.04995036]
[1723806637195,3.4957,143.0,142.97,3.4962]
[1723806637399,14.2057,143.0,142.97,3.4962]
[1723806638191,14.25419888,143.0,142.97,3.4962]
[1723806639199,10.75849888,143.0,142.97,3.4962]
[1723806640098,14.25409888,143.0,142.97,3.4962]
[1723806640903,3.4962,142.98,142.94,10.71]
[1723806641901,3.4962,142.98,142.95,3.4967]
[1723806642097,3.496,142.99,142.95,3.4967]
[1723806642304,3.496,142.99,142.93,3.52485675]
[1723806642305,10.75849888,143.0,142.93,3.52485675]
[1723806642496,10.71,142.99,142.94,3.497]
[1723806642697,3.4963,142.98,142.94,3.497]
[1723806642899,3.54949841,142.98,142.94,3.497]
[1723806643296,3.54949841,142.98,142.93,3.50307579]
[1723806643297,0.05319841,142.98,142.93,3.50307579]
[1723806643697,3.54939841,142.98,142.94,3.4969]
[1723806644196,0.05319841,142.98,142.95,3.4967]
[1723806644602,0.05319841,142.98,142.93,3.50307579]
[1723806644800,3.54949841,142.98,142.94,3.497]
[1723806646696,0.05319841,142.98,142.94,10.71]
[1723806647105,0.05319841,142.98,142.95,10.71]
[1723806647299,0.05319841,142.98,142.97,3.4964]
[1723806649308,0.05319841,142.98,142.95,3.58234575]
[1723806649605,0.05319841,142.98,142.94,10.71]
[1723806649810,0.05319841,142.98,142.95,14.28660033]
[1723806650041,0.05319841,142.98,142.97,3.4964]
[1723806651697,236.984,143.18,142.98,0.04913187]
[1723806651698,4.22,143.04,142.98,0.04913187]
[1723806651902,14.93,143.05,142.97,10.71]
[1723806652203,3.8446,143.08,142.97,10.71]
[1723806652508,3.8446,143.08,142.96,1.2874]
[1723806652509,14.93,143.07,143.01,10.71]
[1723806653002,0.04806618,143.05,143.03,0.05214227]
[1723806653405,0.04806618,143.05,143.03,0.04490459]
[1723806653910,3.54256618,143.05,143.03,0.04490459]
[1723806655311,3.4946,143.04,143.03,0.04490459]
[1723806658013,3.4954,143.01,142.96,1.2874]
[1723806658310,14.2054,143.01,142.96,1.2874]
[1723806658904,0.04757527,143.0,142.98,3.496]
[1723806660203,0.04757527,143.0,142.96,1.2874]
[1723806660513,0.04757527,143.0,142.97,10.71]
[1723806661116,0.04757527,143.0,142.99,3.4959]
[1723806661306,0.04757527,143.0,142.96,1.2874]
[1723806662415,0.04757527,143.0,142.97,3.4963]
[1723806662611,0.04757527,143.0,142.96,1.2874]
[1723806663021,0.04757527,143.0,142.98,3.4959]
[1723806664615,0.04757527,143.0,142.98,2.6959]
[1723806669620,10.71,142.99,142.95,3.45643932]
[1723806669825,10.71,142.96,142.91,4.3]
[1723806670125,14.2067,142.96,142.92,3.4974]
[1723806670325,0.04776935,142.95,142.92,3.4974]
[1723806671229,10.71,142.94,142.89,4.3]
[1723806671426,10.71,142.94,142.87,1.3346]
[1723806671728,10.71,142.94,142.87,16.3446]
[1723806672428,10.71,142.94,142.91,3.4977]
[1723806672624,0.04557523,142.92,142.91,3.4977]
[1723806674729,10.75557523,142.92,142.88,3.4985]
[1723806674935,10.75557523,142.92,142.82,27.94]
[1723806674936,10.71,142.89,142.82,1.3016]
[1723806675128,6.8626,142.91,142.82,1.3016]
[1723806675326,2.5626,142.91,142.83,3.45637946]
[1723806675527,10.71,142.86,142.79,4.3]
[1723806675725,10.71,142.88,142.8,10.71]
[1723806675933,10.71,142.88,142.81,10.71]
[1723806675934,15.05571076,142.88,142.81,10.71]
[1723806676136,10.71,142.87,142.8,14.14740295]
[1723806676432,15.05571076,142.88,142.83,3.4998]
[1723806676650,15.05571076,142.88,142.81,10.71]
[1723806676827,10.71,142.86,142.79,4.3]
[1723806677028,10.71,142.86,142.81,3.5001]
[1723806677231,4.3,142.88,142.79,3.52277818]
[1723806677532,4.3,142.88,142.83,3.4998]
[1723806677533,0.05305749,142.86,142.83,3.4998]
[1723806677728,0.05305749,142.86,142.8,14.28666256]
[1723806677928,0.05305749,142.86,142.8,3.57666256]
[1723806678128,0.05305749,142.86,142.78,26.87]
[1723806678734,0.05305749,142.86,142.78,30.37146954]
[1723806680428,0.05305749,142.86,142.82,26.87]
[1723806680639,0.05305749,142.86,142.84,26.87]
[1723806680927,4.3,142.94,142.84,26.87]